[Event "7th Sharjah Masters 2024"]
[Site "Sharjah"]
[Date "2024.05.15"]
[Round "2.42"]
[White "Pranav, V."]
[Black "Suleymenov, Alisher"]
[Result "1-0"]
[ECO "B77"]
[WhiteElo "2587"]
[BlackElo "2501"]
[Annotator "TA"]
[PlyCount "69"]
[EventDate "2024.05.13"]
[EventType "swiss"]
[EventCountry "UAE"]
[SourceTitle "playchess.com"]
[Source "ChessBase"]
[SourceQuality "1"]
[TimeControl "5400+30"]

{[%evp 22,69,66,61,89,95,151,147,240,225,300,337,331,331,346,333,286,316,310,293,449,376,369,359,430,418,410,390,436,437,479,373,385,404,564,563,881,561,1148,743,797,748,29988,29989,2037,1982,29992,29993,29993,29983]} 1. e4 {[%emt 1:31:00]} c5 {[%emt 1:31:00]} 2. Nf3 {[%emt 0:00:30]} Nc6 {[%emt 0:00:30]} 3. Nc3 {[%emt 0:00:30]} g6 {[%emt 0:00:30]} 4. d4 {[%emt 0:00:30]} cxd4 {[%emt 0:00:30]} 5. Nxd4 {[%emt 0:00:30]} Bg7 {[%emt 0:00:30]} 6. Be3 {[%emt 0:00:30]} Nf6 {[%emt 0:00:30]} 7. Bc4 {[%emt 0:00:30]} O-O {[%emt 0:00:30]} 8. Bb3 {[%emt 0:00:30]} a5 {[%emt 0:00:30]} 9. f3 {[%emt 0:00:30]} Nxd4 {[%emt 0:00:30]} 10. Bxd4 {[%emt 0:00:30]} d6 {[%emt 0:00:30]} 11. Qd2 {[%emt 0:00:30]} Bd7 {[%emt 0:00:30]} 12. a4 {[%emt 0:00:30]} Bc6 {[%emt 0:00:30]} 13. h4 {[%emt 0:00:30][%cal Bh2h4,Bh4h5,Bh5h6][%mdl 32]} Qe8 {[%emt 0:00:30]} (13... h6 $142) 14. g4 {[%emt 0:00:30][%cal Bg2g4,Bg4g5][%mdl 32] White is much more active.} e5 {[%emt 0:00:30]} (14... h6 $16 {is a better defense.}) 15. Be3 $18 {[%emt 0:00:30][%cal Oh4h5] And now h5! would win.} d5 {[%emt 0:00:30]} 16. exd5 {[%emt 0:00:30]} Bd7 {[%emt 0:00:30]} 17. h5 {[%emt 0:00:30]} e4 {[%emt 0:00:30]} 18. h6 {[%emt 0:00:30]} Bh8 {[%emt 0:00:30]} 19. g5 {[%emt 0:00:30]} Nh5 {[%emt 0:00:30]} 20. O-O-O {[%emt 0:00:30]} b5 {[%emt 0:00:30]} (20... Rc8 {was worth a try.} 21. Bd4 (21. Nxe4 Bxa4 22. Kb1 Bxb3 $18) (21. fxe4 Bxc3 22. bxc3 Qxe4 $18) 21... e3 22. Qxe3 Qxe3+ 23. Bxe3 Bf5) 21. Nxe4 {[%emt 0:00:30]} (21. fxe4 bxa4 22. Bxa4 Bxa4 $16) 21... bxa4 {[%emt 0:00:30] Black is weak on the dark squares} 22. Ba2 {[%emt 0:00:30]} Bf5 {[%emt 0:00:30]} 23. Bd4 {[%emt 0:00:30] [#] Strongly threatening Bxh8.} Bxe4 {[%emt 0:00:30]} 24. fxe4 {[%emt 0:00:30]} Be5 {[%emt 0:00:30]} 25. Kb1 {[%emt 0:00:30]} Rb8 {[%emt 0:00:30]} 26. Bxe5 {[%emt 0:00:30]} ({Weaker is} 26. Qxa5 Bxd4 27. Rxd4 Qe5 28. Qxa4 (28. Rxa4 $2 Qxb2#) 28... Rfd8) 26... Qxe5 {[%emt 0:00:30]} 27. Qd4 {[%emt 0:00:30]} (27. Qxa5 $2 Qxb2#) 27... Rfe8 {[%emt 0:00:30]} 28. d6 {[%emt 0:00:30][%cal Bd5d6,Bd6d7][%mdl 32] [#] d7 is the strong threat.} (28. Qxa4 $2 Qxb2#) 28... Ng3 {[%emt 0:00:30]} 29. Rhe1 {[%emt 0:00:30]} Rbd8 {[%emt 0:00:30]} 30. Qa7 {[%emt 0:00:30]} Rf8 {[%emt 0:00:30]} 31. Qe7 {[%emt 0:00:30]} Qf4 {[%emt 0:00:30]} 32. d7 {[%emt 0:00:30]} a3 {[%emt 0:00:30]} 33. Qxa3 {[%emt 0:00:30] aiming for Qc3.} Rb8 {[%emt 0:00:30]} 34. Qc3 {[%emt 0:00:30][%csl Gh6][%cal Rc3g7]} Nh5 {[%emt 0:00:30]} 35. e5 {[%emt 0:00:30] White took control after the opening.   Weighted Error Value: White=0.44/Black=1.03.  Mistake:       	---       	Black=3      Inaccurate:     	White=1     	Black=4      OK:         	White=9     	Black=7      Best:        	White=2     	Black=1} 1-0

[Event "7th Sharjah Masters 2024"]
[Site "Sharjah"]
[Date "2024.05.15"]
[Round "2.43"]
[White "Peralta, Fernando"]
[Black "Seemann, Jakub"]
[Result "1/2-1/2"]
[ECO "E52"]
[WhiteElo "2575"]
[BlackElo "2475"]
[Annotator "TA"]
[PlyCount "49"]
[EventDate "2024.05.13"]
[EventType "swiss"]
[EventCountry "UAE"]
[SourceTitle "playchess.com"]
[Source "ChessBase"]
[SourceQuality "1"]
[TimeControl "5400+30"]

{[%evp 15,49,-2,-3,0,6,4,18,-11,14,0,0,1,21,31,25,7,6,11,12,12,13,0,20,37,25,25,31,25,29,23,21,0,0,0,0,0]} 1. d4 {[%emt 1:31:00]} Nf6 {[%emt 1:31:00]} 2. c4 {[%emt 0:00:30]} e6 {[%emt 0:00:30]} 3. Nc3 {[%emt 0:00:30]} Bb4 {[%emt 0:00:30]} 4. e3 {[%emt 0:00:30]} O-O {[%emt 0:00:30]} 5. Bd2 {[%emt 0:00:30]} d5 {[%emt 0:00:30]} 6. Nf3 {[%emt 0:00:30]} b6 {[%emt 0:00:30]} 7. cxd5 {[%emt 0:00:30]} exd5 {[%emt 0:00:30]} 8. Bd3 {[%emt 0:00:30]} Bb7 {[%emt 0:00:30]} 9. Rc1 {[%emt 0:00:30]} Be7 {[%emt 0:00:30]} 10. O-O {[%emt 0:00:30]} c5 {[%emt 0:00:30]} 11. Ne5 {[%emt 0:00:30]} Bd6 {[%emt 0:00:30]} 12. Nb5 {[%emt 0:00:30]} Be7 {[%emt 0:00:30]} 13. Be1 {[%emt 0:00:30]} Nc6 {[%emt 0:00:30]} 14. Nxc6 {[%emt 0:00:30]} Bxc6 {[%emt 0:00:30]} 15. dxc5 {[%emt 0:00:30]} bxc5 {[%emt 0:00:30]} 16. Nd4 {[%emt 0:00:30]} cxd4 {[%emt 0:00:30]} 17. Rxc6 dxe3 18. fxe3 Rc8 19. Rxc8 {[%emt 0:01:30]} Qxc8 20. Bc3 {[%emt 0:00:30]} Qe6 {[%emt 0:02:00]} 21. Bd4 {[%emt 0:00:30][%cal Od1a4] This pair of bishops is nice.} Ne4 {[%emt 0:00:30]} 22. Bxa7 {[%emt 0:00:30]} Ra8 {[%emt 0:00:30]} 23. Qb3 {[%emt 0:00:30] The position is equal.} Nd2 {[%emt 0:00:30]} 24. Qb7 {[%emt 0:00:30]} Rxa7 {[%emt 0:00:30]} 25. Qxa7 {[%emt 0:00:30] A rather calm draw.   Weighted Error Value: White=0.05 (flawless) /Black=0.05 (flawless) .  Inaccurate:     	White=1     	---        OK:         	White=11    	Black=6      Best:        	---       	Black=1} 1/2-1/2

[Event "7th Sharjah Masters 2024"]
[Site "Sharjah"]
[Date "2024.05.15"]
[Round "2.44"]
[White "Gholami Orimi, Mahdi"]
[Black "Dudin, Gleb"]
[Result "1-0"]
[ECO "E53"]
[WhiteElo "2470"]
[BlackElo "2554"]
[Annotator "TA"]
[PlyCount "31"]
[EventDate "2024.05.13"]
[EventType "swiss"]
[EventCountry "UAE"]
[SourceTitle "playchess.com"]
[Source "ChessBase"]
[SourceQuality "1"]
[TimeControl "5400+30"]

{[%evp 18,31,0,0,12,0,4,0,0,0,0,-1,20,26,37,39]} 1. d4 {[%emt 0:00:03]} Nf6 {[%emt 0:00:16]} 2. c4 {[%emt 0:00:07]} e6 {[%emt 0:00:12]} 3. Nc3 {[%emt 0:00:07]} Bb4 {[%emt 0:00:20]} 4. e3 {[%emt 0:00:10]} O-O {[%emt 0:00:19]} 5. Bd3 {[%emt 0:00:06]} d5 {[%emt 0:00:23]} 6. a3 {[%emt 0:00:10]} Bxc3+ {[%emt 0:01:04]} 7. bxc3 {[%emt 0:00:03]} dxc4 {[%emt 0:00:14]} 8. Bxc4 {[%emt 0:00:06]} c5 {[%emt 0:00:12]} 9. Nf3 {[%emt 0:00:15]} Qc7 {[%emt 0:00:50]} 10. Be2 {[%emt 0:00:06]} Rd8 {[%emt 0:01:36]} 11. O-O {[%emt 0:01:36]} b6 {[%emt 0:02:12]} 12. Bb2 {[%emt 0:02:11]} Bb7 {[%emt 0:01:08]} 13. Re1 {[%emt 0:01:08]} Nc6 {[%emt 0:02:56][%cal Bb8c6,Bc6e7,Be7f5][%mdl 32]} 14. c4 {[%emt 0:04:48]} Ne7 {[%emt 0:00:54]} 15. Ne5 {[%emt 0:11:53]} Nf5 {[%emt 0:05:01]} 16. Bd3 {[%emt 0:01:50] Weighted Error Value: White=0.00 (flawless) /Black=0.05 (flawless) .  OK:         	White=5     	Black=3} 1-0